[Event "Titled Tuesday Blitz June 1 2021"]
[White "Kezin, Roman"]
[Black "Kovalev, Vladislav"]
[WhiteFideId "24124621"]
[BlackFideId "13504398"]
[WhiteElo "2574"]
[BlackElo "2573"]
[Result "1-0"]
[Round "05"]
[TimeControl "180+1"]
[Date "2021.06.01"]
[WhiteClock "0:00:07"]
[BlackClock "0:00:04"]

1. Nf3 {[%clk 0:03:00]}  Nf6 {[%clk 0:02:59]} 2. e3 {[%clk 0:03:00]}  g6 {[%clk 0:02:56]} 3. b3 {[%clk 0:02:55]}  Bg7 {[%clk 0:02:55]} 4. Bb2 {[%clk 0:02:56]}  O-O {[%clk 0:02:53]} 5. c4 {[%clk 0:02:57]}  d6 {[%clk 0:02:53]} 6. d4 {[%clk 0:02:55]}  e5 {[%clk 0:02:53]} 7. Be2 {[%clk 0:02:56]}  e4 {[%clk 0:02:49]} 8. Nfd2 {[%clk 0:02:55]}  Re8 {[%clk 0:02:50]} 9. Nc3 {[%clk 0:02:55]}  h5 {[%clk 0:02:48]} 10. Qc2 {[%clk 0:02:55]}  Bf5 {[%clk 0:02:48]} 11. O-O-O {[%clk 0:02:53]}  Qe7 {[%clk 0:02:43]} 12. h3 {[%clk 0:02:53]}  h4 {[%clk 0:02:40]} 13. Rdg1 {[%clk 0:02:54]}  c5 {[%clk 0:02:38]} 14. dxc5 {[%clk 0:02:50]}  dxc5 {[%clk 0:02:39]} 15. g4 {[%clk 0:02:51]}  hxg3 {[%clk 0:02:39]} 16. fxg3 {[%clk 0:02:52]}  Nc6 {[%clk 0:02:36]} 17. g4 {[%clk 0:02:33]}  Nb4 {[%clk 0:02:36]} 18. Qb1 {[%clk 0:02:33]}  Bd7 {[%clk 0:02:33]} 19. g5 {[%clk 0:02:33]}  Nh7 {[%clk 0:02:33]} 20. a3 {[%clk 0:02:21]}  Nd3+ {[%clk 0:02:17]} 21. Bxd3 {[%clk 0:02:21]}  exd3 {[%clk 0:02:18]} 22. Nd5 {[%clk 0:02:21]}  Qf8 {[%clk 0:01:54]} 23. Qxd3 {[%clk 0:02:17]}  Bc6 {[%clk 0:01:47]} 24. e4 {[%clk 0:02:15]}  Bxd5 {[%clk 0:01:37]} 25. exd5 {[%clk 0:02:07]}  Bxb2+ {[%clk 0:01:33]} 26. Kxb2 {[%clk 0:02:08]}  Qg7+ {[%clk 0:01:24]} 27. Kc2 {[%clk 0:02:08]}  Re5 {[%clk 0:01:19]} 28. Nf3 {[%clk 0:02:03]}  Rf5 {[%clk 0:01:16]} 29. h4 {[%clk 0:02:04]}  b5 {[%clk 0:01:07]} 30. cxb5 {[%clk 0:01:53]}  Rd8 {[%clk 0:01:01]} 31. d6 {[%clk 0:01:54]}  Nf8 {[%clk 0:00:57]} 32. Rd1 {[%clk 0:01:15]}  Ne6 {[%clk 0:00:52]} 33. Kb1 {[%clk 0:01:15]}  Nf4 {[%clk 0:00:26]} 34. Qc4 {[%clk 0:00:31]}  Ng2 {[%clk 0:00:20]} 35. Qe4 {[%clk 0:00:31]}  Rf4 {[%clk 0:00:06]} 36. Qd3 {[%clk 0:00:30]}  c4 {[%clk 0:00:04]} 37. bxc4 {[%clk 0:00:30]}  Qf8 {[%clk 0:00:02]} 38. Rh2 {[%clk 0:00:24]}  Rg4 {[%clk 0:00:02]} 39. Qd2 {[%clk 0:00:21]}  Nf4 {[%clk 0:00:02]} 40. Ne5 {[%clk 0:00:20]}  Rg3 {[%clk 0:00:01]} 41. Qxf4 {[%clk 0:00:19]}  Rb3+ {[%clk 0:00:02]} 42. Rb2 {[%clk 0:00:19]}  Rxa3 {[%clk 0:00:03]} 43. d7 {[%clk 0:00:13]}  Ra4 {[%clk 0:00:03]} 44. Nc6 {[%clk 0:00:09]}  Qa3 {[%clk 0:00:03]} 45. Nxd8 {[%clk 0:00:10]}  Rb4 {[%clk 0:00:03]} 46. Qxf7+ {[%clk 0:00:09]}  Kh8 {[%clk 0:00:03]} 47. Qe8+ {[%clk 0:00:08]}  Kh7 {[%clk 0:00:04]} 48. Qe7+ {[%clk 0:00:08]}  Kh8 {[%clk 0:00:05]} 49. Qf6+ {[%clk 0:00:07]}  Kh7 {[%clk 0:00:05]} 50. Ne6 {[%clk 0:00:07]}  Rxb2+ {[%clk 0:00:03]} 51. Qxb2 {[%clk 0:00:08]}  Qe7 {[%clk 0:00:03]} 52. d8=Q {[%clk 0:00:07]}  Qxd8 {[%clk 0:00:04]} 1-0


[Site "https://www.chess.com"]

[Event "Titled Tuesday Blitz June 1 2021"]
[White "Makhnev, Denis"]
[Black "Zierk, Steven"]
[WhiteFideId "13707647"]
[BlackFideId "2034255"]
[WhiteElo "2549"]
[BlackElo "2502"]
[Result "0-1"]
[Round "05"]
[TimeControl "180+1"]
[Date "2021.06.01"]
[WhiteClock "0:01:27"]
[BlackClock "0:02:01"]

1. Nf3 {[%clk 0:03:00]}  d5 {[%clk 0:02:59]} 2. d4 {[%clk 0:03:00]}  Nf6 {[%clk 0:02:59]} 3. Bf4 {[%clk 0:02:59]}  c5 {[%clk 0:02:58]} 4. c3 {[%clk 0:02:59]}  e6 {[%clk 0:02:57]} 5. e3 {[%clk 0:02:58]}  Bd6 {[%clk 0:02:58]} 6. Bxd6 {[%clk 0:02:54]}  Qxd6 {[%clk 0:02:59]} 7. Nbd2 {[%clk 0:02:54]}  Nc6 {[%clk 0:02:57]} 8. Be2 {[%clk 0:02:51]}  O-O {[%clk 0:02:57]} 9. O-O {[%clk 0:02:51]}  e5 {[%clk 0:02:57]} 10. dxe5 {[%clk 0:02:51]}  Nxe5 {[%clk 0:02:58]} 11. Nxe5 {[%clk 0:02:51]}  Qxe5 {[%clk 0:02:59]} 12. Nf3 {[%clk 0:02:51]}  Qc7 {[%clk 0:02:55]} 13. Qc2 {[%clk 0:02:40]}  b6 {[%clk 0:02:51]} 14. Rfd1 {[%clk 0:02:34]}  Bb7 {[%clk 0:02:51]} 15. c4 {[%clk 0:02:24]}  Rfd8 {[%clk 0:02:42]} 16. a3 {[%clk 0:02:23]}  Qe7 {[%clk 0:02:34]} 17. cxd5 {[%clk 0:02:21]}  Bxd5 {[%clk 0:02:33]} 18. Rd2 {[%clk 0:02:18]}  Be4 {[%clk 0:02:26]} 19. Qc3 {[%clk 0:02:00]}  Rxd2 {[%clk 0:02:22]} 20. Nxd2 {[%clk 0:01:58]}  Rd8 {[%clk 0:02:20]} 21. Rd1 {[%clk 0:01:55]}  Qd7 {[%clk 0:02:04]} 22. f3 {[%clk 0:01:46]}  Nd5 {[%clk 0:02:01]} 23. Qb3 {[%clk 0:01:42]}  Bc2 {[%clk 0:02:01]} 24. Qxc2 {[%clk 0:01:27]}  Nxe3 {[%clk 0:02:01]} 0-1


[Site "https://www.chess.com"]

[Event "Titled Tuesday Blitz June 1 2021"]
[White "Moskalenko, Alexander"]
[Black "Le, Tuan Minh"]
[WhiteFideId "4155351"]
[BlackFideId "12401153"]
[WhiteElo "2495"]
[BlackElo "2450"]
[Result "1-0"]
[Round "05"]
[TimeControl "180+1"]
[Date "2021.06.01"]
[WhiteClock "0:00:19"]
[BlackClock "0:00:03"]

1. d4 {[%clk 0:03:00]}  d5 {[%clk 0:02:54]} 2. c4 {[%clk 0:03:01]}  c6 {[%clk 0:02:52]} 3. Nf3 {[%clk 0:03:02]}  Nf6 {[%clk 0:02:51]} 4. e3 {[%clk 0:03:02]}  Bf5 {[%clk 0:02:51]} 5. Bd3 {[%clk 0:02:59]}  Bg6 {[%clk 0:02:51]} 6. O-O {[%clk 0:02:55]}  e6 {[%clk 0:02:51]} 7. Nc3 {[%clk 0:02:55]}  Nbd7 {[%clk 0:02:51]} 8. h3 {[%clk 0:02:51]}  Bd6 {[%clk 0:02:51]} 9. Re1 {[%clk 0:02:48]}  O-O {[%clk 0:02:50]} 10. Bxg6 {[%clk 0:02:47]}  hxg6 {[%clk 0:02:50]} 11. e4 {[%clk 0:02:44]}  dxe4 {[%clk 0:02:51]} 12. Nxe4 {[%clk 0:02:45]}  Nxe4 {[%clk 0:02:52]} 13. Rxe4 {[%clk 0:02:46]}  Re8 {[%clk 0:02:51]} 14. b3 {[%clk 0:02:37]}  Qa5 {[%clk 0:02:48]} 15. Bd2 {[%clk 0:02:37]}  Bb4 {[%clk 0:02:44]} 16. Bxb4 {[%clk 0:02:31]}  Qxb4 {[%clk 0:02:45]} 17. Qe2 {[%clk 0:02:32]}  a5 {[%clk 0:02:42]} 18. Rd1 {[%clk 0:02:16]}  Nf6 {[%clk 0:02:40]} 19. Re3 {[%clk 0:02:16]}  a4 {[%clk 0:02:39]} 20. a3 {[%clk 0:02:13]}  Qxa3 {[%clk 0:02:33]} 21. bxa4 {[%clk 0:02:11]}  Qxa4 {[%clk 0:02:32]} 22. Ne5 {[%clk 0:02:07]}  Red8 {[%clk 0:02:29]} 23. Qf3 {[%clk 0:02:00]}  Qc2 {[%clk 0:02:22]} 24. g4 {[%clk 0:01:56]}  Rf8 {[%clk 0:01:41]} 25. Rb3 {[%clk 0:01:56]}  b5 {[%clk 0:01:26]} 26. cxb5 {[%clk 0:01:51]}  cxb5 {[%clk 0:01:27]} 27. Rxb5 {[%clk 0:01:52]}  Ra3 {[%clk 0:01:24]} 28. Qxa3 {[%clk 0:01:46]}  Qxd1+ {[%clk 0:01:23]} 29. Kh2 {[%clk 0:01:40]}  Qxd4 {[%clk 0:01:14]} 30. Qg3 {[%clk 0:01:41]}  Ne4 {[%clk 0:00:55]} 31. Qe3 {[%clk 0:01:40]}  Qxe3 {[%clk 0:00:52]} 32. fxe3 {[%clk 0:01:41]}  Nc3 {[%clk 0:00:48]} 33. Rb4 {[%clk 0:01:37]}  Nd5 {[%clk 0:00:48]} 34. Rb3 {[%clk 0:01:37]}  Rc8 {[%clk 0:00:47]} 35. g5 {[%clk 0:01:32]}  Rc7 {[%clk 0:00:44]} 36. Rb8+ {[%clk 0:01:28]}  Kh7 {[%clk 0:00:44]} 37. Rf8 {[%clk 0:01:29]}  f5 {[%clk 0:00:14]} 38. Nf7 {[%clk 0:01:28]}  Rxf7 {[%clk 0:00:14]} 39. Rxf7 {[%clk 0:01:27]}  e5 {[%clk 0:00:09]} 40. e4 {[%clk 0:01:10]}  fxe4 {[%clk 0:00:10]} 41. Kg3 {[%clk 0:01:11]}  e3 {[%clk 0:00:08]} 42. Kf3 {[%clk 0:01:09]}  e2 {[%clk 0:00:09]} 43. Kxe2 {[%clk 0:01:08]}  Nf4+ {[%clk 0:00:09]} 44. Kf3 {[%clk 0:01:07]}  Nxh3 {[%clk 0:00:10]} 45. Kg4 {[%clk 0:01:08]}  Nf4 {[%clk 0:00:10]} 46. Re7 {[%clk 0:01:05]}  Nd3 {[%clk 0:00:11]} 47. Re8 {[%clk 0:01:03]}  e4 {[%clk 0:00:10]} 48. Kg3 {[%clk 0:01:03]}  Nc5 {[%clk 0:00:08]} 49. Re5 {[%clk 0:01:03]}  Nb7 {[%clk 0:00:07]} 50. Rxe4 {[%clk 0:01:02]}  Nd6 {[%clk 0:00:08]} 51. Re1 {[%clk 0:00:59]}  Nf5+ {[%clk 0:00:08]} 52. Kf4 {[%clk 0:01:00]}  Nd4 {[%clk 0:00:08]} 53. Ke4 {[%clk 0:00:57]}  Ne6 {[%clk 0:00:08]} 54. Rg1 {[%clk 0:00:57]}  Nc5+ {[%clk 0:00:09]} 55. Kd5 {[%clk 0:00:57]}  Nd3 {[%clk 0:00:09]} 56. Ke6 {[%clk 0:00:54]}  Kg8 {[%clk 0:00:09]} 57. Rg4 {[%clk 0:00:52]}  Nf2 {[%clk 0:00:09]} 58. Rh4 {[%clk 0:00:43]}  Nd3 {[%clk 0:00:09]} 59. Rd4 {[%clk 0:00:40]}  Nf2 {[%clk 0:00:09]} 60. Ke5 {[%clk 0:00:38]}  Nh3 {[%clk 0:00:06]} 61. Rg4 {[%clk 0:00:34]}  Nf2 {[%clk 0:00:06]} 62. Rg3 {[%clk 0:00:32]}  Nd1 {[%clk 0:00:02]} 63. Kd4 {[%clk 0:00:28]}  Nf2 {[%clk 0:00:01]} 64. Ke3 {[%clk 0:00:25]}  Nd1+ {[%clk 0:00:02]} 65. Ke2 {[%clk 0:00:16]}  Nb2 {[%clk 0:00:02]} 66. Rg4 {[%clk 0:00:17]}  Kf7 {[%clk 0:00:01]} 67. Rb4 {[%clk 0:00:17]}  Ke6 {[%clk 0:00:01]} 68. Rxb2 {[%clk 0:00:17]}  Kf5 {[%clk 0:00:02]} 69. Rb5+ {[%clk 0:00:18]}  Kg4 {[%clk 0:00:02]} 70. Kf2 {[%clk 0:00:18]}  Kh4 {[%clk 0:00:03]} 71. Kf3 {[%clk 0:00:18]}  Kh3 {[%clk 0:00:03]} 72. Kf4 {[%clk 0:00:18]}  Kh4 {[%clk 0:00:03]} 73. Rb3 {[%clk 0:00:19]} 1-0


[Site "https://www.chess.com"]

[Event "Titled Tuesday Blitz June 1 2021"]
[White "Nakamura, Hikaru"]
[Black "Sonis, Francesco"]
[WhiteFideId "2016192"]
[BlackFideId "895733"]
[WhiteElo "2900"]
[BlackElo "2373"]
[Result "1-0"]
[Round "05"]
[TimeControl "180+1"]
[Date "2021.06.01"]
[WhiteClock "0:00:47"]
[BlackClock "0:00:17"]

1. b4 {[%clk 0:03:00]}  e6 {[%clk 0:02:55]} 2. Bb2 {[%clk 0:03:00]}  Nf6 {[%clk 0:02:56]} 3. a3 {[%clk 0:03:00]}  d5 {[%clk 0:02:47]} 4. Nf3 {[%clk 0:03:00]}  Bd6 {[%clk 0:02:46]} 5. e3 {[%clk 0:03:00]}  O-O {[%clk 0:02:46]} 6. c4 {[%clk 0:03:00]}  b6 {[%clk 0:02:45]} 7. cxd5 {[%clk 0:02:58]}  exd5 {[%clk 0:02:42]} 8. d4 {[%clk 0:02:58]}  Bb7 {[%clk 0:02:42]} 9. Nc3 {[%clk 0:02:53]}  Ne4 {[%clk 0:02:41]} 10. Qb3 {[%clk 0:02:49]}  Re8 {[%clk 0:02:34]} 11. Rc1 {[%clk 0:02:45]}  a6 {[%clk 0:02:30]} 12. Bd3 {[%clk 0:02:45]}  Ng5 {[%clk 0:02:16]} 13. Nd2 {[%clk 0:02:37]}  c6 {[%clk 0:01:54]} 14. Qc2 {[%clk 0:02:32]}  h6 {[%clk 0:01:51]} 15. O-O {[%clk 0:02:25]}  Nd7 {[%clk 0:01:51]} 16. f4 {[%clk 0:02:24]}  Ne6 {[%clk 0:01:47]} 17. Qb3 {[%clk 0:02:24]}  Nef8 {[%clk 0:01:46]} 18. Rce1 {[%clk 0:02:23]}  Nf6 {[%clk 0:01:45]} 19. Nf3 {[%clk 0:02:22]}  a5 {[%clk 0:01:39]} 20. Ne5 {[%clk 0:02:21]}  axb4 {[%clk 0:01:34]} 21. axb4 {[%clk 0:02:21]}  Qc7 {[%clk 0:01:30]} 22. Rc1 {[%clk 0:02:13]}  Qe7 {[%clk 0:01:29]} 23. Na4 {[%clk 0:02:13]}  N6d7 {[%clk 0:01:26]} 24. Bf5 {[%clk 0:02:00]}  b5 {[%clk 0:01:14]} 25. Nc5 {[%clk 0:01:56]}  Nxc5 {[%clk 0:01:12]} 26. dxc5 {[%clk 0:01:49]}  Bc7 {[%clk 0:01:11]} 27. Rce1 {[%clk 0:01:47]}  f6 {[%clk 0:01:09]} 28. Ng6 {[%clk 0:01:44]}  Qf7 {[%clk 0:01:00]} 29. Nxf8 {[%clk 0:01:41]}  Kxf8 {[%clk 0:01:00]} 30. Qd3 {[%clk 0:01:41]}  Re7 {[%clk 0:00:56]} 31. Bg6 {[%clk 0:01:40]}  Qe6 {[%clk 0:00:56]} 32. e4 {[%clk 0:01:35]}  Rd8 {[%clk 0:00:27]} 33. e5 {[%clk 0:01:13]}  d4 {[%clk 0:00:24]} 34. Qb1 {[%clk 0:00:52]}  Qc4 {[%clk 0:00:19]} 35. exf6 {[%clk 0:00:47]}  Rf7 {[%clk 0:00:17]} 36. Bxf7 {[%clk 0:00:47]} 1-0


[Site "https://www.chess.com"]

[Event "Titled Tuesday Blitz June 1 2021"]
[White "Ozen, Bahadir"]
[Black "Quparadze, Giga"]
[WhiteFideId "6337058"]
[BlackFideId "13602250"]
[WhiteElo "2503"]
[BlackElo "2658"]
[Result "0-1"]
[Round "05"]
[TimeControl "180+1"]
[Date "2021.06.01"]
[WhiteClock "0:01:49"]
[BlackClock "0:01:56"]

1. e4 {[%clk 0:03:00]}  c5 {[%clk 0:02:59]} 2. Nf3 {[%clk 0:03:01]}  e6 {[%clk 0:02:59]} 3. c3 {[%clk 0:03:00]}  d5 {[%clk 0:02:59]} 4. exd5 {[%clk 0:03:00]}  Qxd5 {[%clk 0:03:00]} 5. d4 {[%clk 0:03:00]}  Nc6 {[%clk 0:03:00]} 6. Be2 {[%clk 0:03:00]}  Nf6 {[%clk 0:03:00]} 7. O-O {[%clk 0:03:00]}  cxd4 {[%clk 0:03:01]} 8. cxd4 {[%clk 0:03:00]}  Be7 {[%clk 0:03:01]} 9. Nc3 {[%clk 0:03:00]}  Qd6 {[%clk 0:03:01]} 10. Bg5 {[%clk 0:02:51]}  O-O {[%clk 0:03:00]} 11. Qd2 {[%clk 0:02:41]}  Rd8 {[%clk 0:02:59]} 12. Rfd1 {[%clk 0:02:41]}  Nd5 {[%clk 0:02:52]} 13. Ne4 {[%clk 0:02:27]}  Qb4 {[%clk 0:02:46]} 14. Rac1 {[%clk 0:02:08]}  Qxd2 {[%clk 0:02:44]} 15. Rxd2 {[%clk 0:02:09]}  f6 {[%clk 0:02:41]} 16. Bh4 {[%clk 0:02:06]}  g5 {[%clk 0:02:34]} 17. Bg3 {[%clk 0:02:05]}  g4 {[%clk 0:02:35]} 18. Ne1 {[%clk 0:01:57]}  f5 {[%clk 0:02:35]} 19. Nc3 {[%clk 0:01:58]}  Bg5 {[%clk 0:02:24]} 20. f4 {[%clk 0:01:57]}  Nxf4 {[%clk 0:02:20]} 21. Rcd1 {[%clk 0:01:54]}  Nd5 {[%clk 0:02:07]} 22. Nxd5 {[%clk 0:01:52]}  Rxd5 {[%clk 0:01:57]} 23. Bc4 {[%clk 0:01:51]}  Bxd2 {[%clk 0:01:56]} 24. Rxd2 {[%clk 0:01:49]} 0-1


[Site "https://www.chess.com"]

[Event "Titled Tuesday Blitz June 1 2021"]
[White "Pert, Richard G"]
[Black "Makhnev, Denis"]
[WhiteFideId "404748"]
[BlackFideId "13707647"]
[WhiteElo "2441"]
[BlackElo "2549"]
[Result "0-1"]
[Round "05"]
[TimeControl "180+1"]
[Date "2021.06.01"]
[WhiteClock "0:00:08"]
[BlackClock "0:00:15"]

1. e4 {[%clk 0:03:00]}  e5 {[%clk 0:02:59]} 2. Nf3 {[%clk 0:03:00]}  Nc6 {[%clk 0:03:00]} 3. Bb5 {[%clk 0:02:59]}  a6 {[%clk 0:03:00]} 4. Ba4 {[%clk 0:02:59]}  Nf6 {[%clk 0:03:01]} 5. O-O {[%clk 0:02:59]}  Be7 {[%clk 0:03:01]} 6. d3 {[%clk 0:02:57]}  b5 {[%clk 0:03:01]} 7. Bb3 {[%clk 0:02:57]}  d6 {[%clk 0:03:01]} 8. Nbd2 {[%clk 0:02:51]}  Na5 {[%clk 0:02:59]} 9. a4 {[%clk 0:02:47]}  Nxb3 {[%clk 0:02:55]} 10. Nxb3 {[%clk 0:02:47]}  Be6 {[%clk 0:02:51]} 11. c3 {[%clk 0:02:34]}  O-O {[%clk 0:02:45]} 12. Ng5 {[%clk 0:02:33]}  Bd7 {[%clk 0:02:41]} 13. axb5 {[%clk 0:02:20]}  h6 {[%clk 0:02:37]} 14. Nf3 {[%clk 0:02:18]}  axb5 {[%clk 0:02:34]} 15. Rxa8 {[%clk 0:02:15]}  Qxa8 {[%clk 0:02:35]} 16. h3 {[%clk 0:02:15]}  c5 {[%clk 0:02:34]} 17. Be3 {[%clk 0:02:13]}  c4 {[%clk 0:02:29]} 18. dxc4 {[%clk 0:02:10]}  bxc4 {[%clk 0:02:23]} 19. Nbd2 {[%clk 0:02:09]}  Rc8 {[%clk 0:01:42]} 20. Qc2 {[%clk 0:01:45]}  Bc6 {[%clk 0:01:21]} 21. Nxc4 {[%clk 0:01:36]}  Bxe4 {[%clk 0:01:19]} 22. Qe2 {[%clk 0:01:36]}  Qa6 {[%clk 0:01:19]} 23. Nfd2 {[%clk 0:01:25]}  d5 {[%clk 0:01:17]} 24. f4 {[%clk 0:00:59]}  dxc4 {[%clk 0:01:09]} 25. fxe5 {[%clk 0:00:58]}  Bd3 {[%clk 0:00:55]} 26. Qf3 {[%clk 0:00:57]}  Bxf1 {[%clk 0:00:55]} 27. exf6 {[%clk 0:00:57]}  Bxf6 {[%clk 0:00:39]} 28. Qxf1 {[%clk 0:00:50]}  Qe6 {[%clk 0:00:39]} 29. Qf3 {[%clk 0:00:48]}  Re8 {[%clk 0:00:39]} 30. Bf2 {[%clk 0:00:47]}  Bg5 {[%clk 0:00:38]} 31. Nf1 {[%clk 0:00:45]}  Qe2 {[%clk 0:00:35]} 32. Qc6 {[%clk 0:00:44]}  Re6 {[%clk 0:00:34]} 33. Qc8+ {[%clk 0:00:40]}  Kh7 {[%clk 0:00:34]} 34. Qb7 {[%clk 0:00:40]}  Rf6 {[%clk 0:00:33]} 35. Qa7 {[%clk 0:00:36]}  Qxb2 {[%clk 0:00:19]} 36. Bd4 {[%clk 0:00:25]}  Rf5 {[%clk 0:00:19]} 37. Ng3 {[%clk 0:00:25]}  Qb1+ {[%clk 0:00:18]} 38. Kh2 {[%clk 0:00:25]}  Bf4 {[%clk 0:00:19]} 39. Qd7 {[%clk 0:00:22]}  Qd3 {[%clk 0:00:18]} 40. Kh1 {[%clk 0:00:09]}  Bxg3 {[%clk 0:00:16]} 41. Qc8 {[%clk 0:00:08]}  Rf1+ {[%clk 0:00:15]} 42. Bg1 {[%clk 0:00:08]}  Rxg1+ {[%clk 0:00:15]} 0-1


[Site "https://www.chess.com"]

[Event "Titled Tuesday Blitz June 1 2021"]
[White "Supi, Luis Paulo"]
[Black "Bacrot, Etienne"]
[WhiteFideId "2106388"]
[BlackFideId "605506"]
[WhiteElo "2369"]
[BlackElo "2673"]
[Result "1-0"]
[Round "05"]
[TimeControl "180+1"]
[Date "2021.06.01"]
[WhiteClock "0:00:06"]
[BlackClock "0:00:04"]

1. c4 {[%clk 0:03:00]}  e5 {[%clk 0:02:57]} 2. g3 {[%clk 0:03:01]}  Nf6 {[%clk 0:02:53]} 3. Bg2 {[%clk 0:03:01]}  c6 {[%clk 0:02:53]} 4. Nf3 {[%clk 0:03:00]}  e4 {[%clk 0:02:53]} 5. Nd4 {[%clk 0:03:00]}  d5 {[%clk 0:02:54]} 6. d3 {[%clk 0:02:52]}  exd3 {[%clk 0:02:47]} 7. cxd5 {[%clk 0:02:49]}  Bb4+ {[%clk 0:02:42]} 8. Nc3 {[%clk 0:02:41]}  Nxd5 {[%clk 0:02:28]} 9. Qxd3 {[%clk 0:02:41]}  O-O {[%clk 0:02:27]} 10. O-O {[%clk 0:02:40]}  Nxc3 {[%clk 0:02:18]} 11. bxc3 {[%clk 0:02:41]}  Be7 {[%clk 0:02:19]} 12. Rd1 {[%clk 0:02:01]}  Na6 {[%clk 0:02:05]} 13. Bf4 {[%clk 0:01:55]}  Bf6 {[%clk 0:01:53]} 14. a4 {[%clk 0:01:45]}  Qa5 {[%clk 0:01:48]} 15. h3 {[%clk 0:01:40]}  Rd8 {[%clk 0:01:44]} 16. Qe3 {[%clk 0:01:40]}  Bd7 {[%clk 0:01:35]} 17. g4 {[%clk 0:01:16]}  Re8 {[%clk 0:01:01]} 18. Nb3 {[%clk 0:01:15]}  Qd8 {[%clk 0:00:39]} 19. Qg3 {[%clk 0:01:15]}  Qc8 {[%clk 0:00:33]} 20. Na5 {[%clk 0:01:08]}  Be6 {[%clk 0:00:32]} 21. Bd6 {[%clk 0:00:58]}  Bd5 {[%clk 0:00:29]} 22. Rab1 {[%clk 0:00:49]}  b6 {[%clk 0:00:21]} 23. Nb3 {[%clk 0:00:36]}  Bxg2 {[%clk 0:00:20]} 24. Qxg2 {[%clk 0:00:36]}  Rxe2 {[%clk 0:00:20]} 25. g5 {[%clk 0:00:35]}  Bxc3 {[%clk 0:00:12]} 26. Rbc1 {[%clk 0:00:35]}  Bb2 {[%clk 0:00:12]} 27. Rxc6 {[%clk 0:00:33]}  Qe8 {[%clk 0:00:12]} 28. Bg3 {[%clk 0:00:26]}  Nb4 {[%clk 0:00:11]} 29. Rcd6 {[%clk 0:00:26]}  Rc8 {[%clk 0:00:11]} 30. Kh2 {[%clk 0:00:18]}  g6 {[%clk 0:00:11]} 31. Nd4 {[%clk 0:00:17]}  Re4 {[%clk 0:00:10]} 32. Nb5 {[%clk 0:00:14]}  Be5 {[%clk 0:00:10]} 33. R6d2 {[%clk 0:00:11]}  Bxg3+ {[%clk 0:00:09]} 34. Qxg3 {[%clk 0:00:12]}  Qe7 {[%clk 0:00:10]} 35. Nd6 {[%clk 0:00:11]}  Rc5 {[%clk 0:00:07]} 36. Nxe4 {[%clk 0:00:11]}  Qxe4 {[%clk 0:00:08]} 37. Rd4 {[%clk 0:00:10]}  Qe7 {[%clk 0:00:07]} 38. Rd7 {[%clk 0:00:09]}  Qxg5 {[%clk 0:00:07]} 39. Qxg5 {[%clk 0:00:09]}  Rxg5 {[%clk 0:00:07]} 40. Rxa7 {[%clk 0:00:10]}  Rf5 {[%clk 0:00:07]} 41. Kg2 {[%clk 0:00:10]}  Nd5 {[%clk 0:00:06]} 42. Rb7 {[%clk 0:00:08]}  Nf4+ {[%clk 0:00:06]} 43. Kf1 {[%clk 0:00:05]}  Nxh3 {[%clk 0:00:06]} 44. Rd2 {[%clk 0:00:05]}  Rf6 {[%clk 0:00:05]} 45. Rb2 {[%clk 0:00:05]}  Nf4 {[%clk 0:00:04]} 46. R7xb6 {[%clk 0:00:05]}  Rf5 {[%clk 0:00:04]} 47. R2b5 {[%clk 0:00:06]}  Nd5 {[%clk 0:00:05]} 48. Rd6 {[%clk 0:00:05]}  Ne3+ {[%clk 0:00:04]} 49. Ke2 {[%clk 0:00:06]} 1-0


[Site "https://www.chess.com"]

[Event "Titled Tuesday Blitz June 1 2021"]
[White "Sychev, Klementy"]
[Black "Urazayev, Arystanbek"]
[WhiteFideId "4114060"]
[BlackFideId "13709810"]
[WhiteElo "2615"]
[BlackElo "2321"]
[Result "0-1"]
[Round "05"]
[TimeControl "180+1"]
[Date "2021.06.01"]
[WhiteClock "0:00:02"]
[BlackClock "0:00:06"]

1. e4 {[%clk 0:03:00]}  c5 {[%clk 0:03:00]} 2. g3 {[%clk 0:03:00]}  e6 {[%clk 0:03:01]} 3. Bg2 {[%clk 0:03:00]}  d5 {[%clk 0:03:02]} 4. exd5 {[%clk 0:03:00]}  exd5 {[%clk 0:03:03]} 5. Ne2 {[%clk 0:03:00]}  Nc6 {[%clk 0:03:03]} 6. d4 {[%clk 0:03:00]}  cxd4 {[%clk 0:03:02]} 7. Nxd4 {[%clk 0:02:59]}  Bc5 {[%clk 0:03:02]} 8. Nb3 {[%clk 0:02:57]}  Bb6 {[%clk 0:03:01]} 9. Nc3 {[%clk 0:02:18]}  d4 {[%clk 0:02:49]} 10. Na4 {[%clk 0:02:15]}  Nf6 {[%clk 0:02:40]} 11. O-O {[%clk 0:02:12]}  O-O {[%clk 0:02:40]} 12. Nxb6 {[%clk 0:02:07]}  axb6 {[%clk 0:02:40]} 13. Bxc6 {[%clk 0:01:37]}  bxc6 {[%clk 0:02:39]} 14. Qxd4 {[%clk 0:01:37]}  Qxd4 {[%clk 0:02:06]} 15. Nxd4 {[%clk 0:01:27]}  c5 {[%clk 0:02:07]} 16. Nf3 {[%clk 0:01:12]}  Bb7 {[%clk 0:01:55]} 17. Ne5 {[%clk 0:01:05]}  Rfe8 {[%clk 0:01:52]} 18. Nd3 {[%clk 0:01:02]}  Ng4 {[%clk 0:01:37]} 19. h3 {[%clk 0:00:53]}  Nf6 {[%clk 0:01:25]} 20. Bf4 {[%clk 0:00:48]}  Nd5 {[%clk 0:01:25]} 21. Rfe1 {[%clk 0:00:46]}  f6 {[%clk 0:01:08]} 22. Bd2 {[%clk 0:00:43]}  Rxe1+ {[%clk 0:01:04]} 23. Bxe1 {[%clk 0:00:38]}  Nc7 {[%clk 0:00:58]} 24. Bd2 {[%clk 0:00:36]}  Kf7 {[%clk 0:00:52]} 25. a3 {[%clk 0:00:31]}  Ne6 {[%clk 0:00:48]} 26. Bc3 {[%clk 0:00:28]}  Ng5 {[%clk 0:00:46]} 27. h4 {[%clk 0:00:26]}  Nf3+ {[%clk 0:00:46]} 28. Kf1 {[%clk 0:00:26]}  Nh2+ {[%clk 0:00:41]} 29. Kg1 {[%clk 0:00:24]}  Nf3+ {[%clk 0:00:41]} 30. Kf1 {[%clk 0:00:25]}  g5 {[%clk 0:00:40]} 31. hxg5 {[%clk 0:00:23]}  fxg5 {[%clk 0:00:40]} 32. Ne5+ {[%clk 0:00:22]}  Nxe5 {[%clk 0:00:36]} 33. Bxe5 {[%clk 0:00:23]}  Bf3 {[%clk 0:00:29]} 34. Bc7 {[%clk 0:00:18]}  b5 {[%clk 0:00:27]} 35. Re1 {[%clk 0:00:18]}  g4 {[%clk 0:00:16]} 36. Bb6 {[%clk 0:00:17]}  b4 {[%clk 0:00:15]} 37. Bxc5 {[%clk 0:00:16]}  bxa3 {[%clk 0:00:11]} 38. Bxa3 {[%clk 0:00:07]}  Ra6 {[%clk 0:00:12]} 39. Re5 {[%clk 0:00:06]}  Rc6 {[%clk 0:00:09]} 40. c3 {[%clk 0:00:05]}  Rh6 {[%clk 0:00:08]} 41. Ke1 {[%clk 0:00:05]}  Rh1+ {[%clk 0:00:09]} 42. Kd2 {[%clk 0:00:05]}  Kf6 {[%clk 0:00:10]} 43. Ra5 {[%clk 0:00:04]}  Rf1 {[%clk 0:00:09]} 44. Bc5 {[%clk 0:00:04]}  h5 {[%clk 0:00:07]} 45. Bd4+ {[%clk 0:00:04]}  Kg6 {[%clk 0:00:07]} 46. b4 {[%clk 0:00:04]}  Rb1 {[%clk 0:00:05]} 47. Rc5 {[%clk 0:00:04]}  Rb2+ {[%clk 0:00:05]} 48. Ke3 {[%clk 0:00:04]}  Re2+ {[%clk 0:00:06]} 49. Kd3 {[%clk 0:00:04]}  Re1 {[%clk 0:00:05]} 50. b5 {[%clk 0:00:04]}  Rd1+ {[%clk 0:00:05]} 51. Kc2 {[%clk 0:00:04]}  Re1 {[%clk 0:00:04]} 52. b6 {[%clk 0:00:05]}  Re2+ {[%clk 0:00:05]} 53. Kc1 {[%clk 0:00:04]}  Re7 {[%clk 0:00:04]} 54. Rc4 {[%clk 0:00:02]}  Kf5 {[%clk 0:00:04]} 55. Rc5+ {[%clk 0:00:03]}  Re5 {[%clk 0:00:04]} 56. Rxe5+ {[%clk 0:00:02]}  Kg6 {[%clk 0:00:05]} 57. Re3 {[%clk 0:00:02]}  h4 {[%clk 0:00:06]} 0-1


[Site "https://www.chess.com"]